fUSD/lending_fUSD_20250502
["ID","MTS","AMOUNT","RATE_DAILY","PERIOD"]
[359624150,1746190249885,-500.0,0.00019973,2]
[359624151,1746190249895,-500.0,0.00019973,2]
[359624152,1746190249906,-500.0,0.00019973,2]
[359624153,1746190249916,-505.99606481,0.00019973,2]
[359624154,1746190249926,-500.0,0.00019973,2]
[359624155,1746190249935,-500.0,0.00019973,2]
[359624156,1746190249945,-500.68110356,0.00019973,2]
[359624157,1746190249954,-502.14334775,0.00019973,2]
[359624158,1746190249965,-150.0,0.00019974,2]
[359624159,1746190249974,-150.0,0.00019978,2]
[359624160,1746190249985,-201.475204,0.00019986,2]
[359624161,1746190249995,-201.475204,0.00019986,2]
[359624162,1746190250004,-201.475204,0.00019986,2]
[359624163,1746190250014,-201.475204,0.00019986,2]
[359624164,1746190250023,-201.475204,0.00019986,2]
[359624165,1746190250032,-201.475204,0.00019986,2]
[359624166,1746190250042,-3986.2094743,0.00019986,2]
[359624167,1746190250051,-3926.3602235,0.00019986,2]
[359624168,1746190250061,-39245.03505,0.00019986,2]
[359624169,1746190250070,-38715.9438109,0.00019986,2]
[359624170,1746190250080,-57536.8789333,0.00019986,2]
[359624171,1746190250090,-56761.1818666,0.00019986,2]
[359624172,1746190250100,-2754.3929,0.00019986,2]
[359624173,1746190250109,-2446.4643,0.00019986,2]
[359624174,1746190250119,-14105.1031387,0.00019986,2]
[359624175,1746190250129,-12528.2167539,0.00019986,2]
[359624176,1746190250137,-217.11897615,0.0001999,2]
[359624177,1746190250147,-217.11897615,0.0001999,2]
[359624178,1746190250157,-150.0,0.00019994,2]
[359624179,1746190250167,-536.82485784,0.00019999,2]
[359624180,1746190250177,-500.0,0.00019999,2]
[359624181,1746190250186,-500.0,0.00019999,2]
[359624182,1746190250196,-399.31699585,0.00019999,2]
[359624183,1746190250205,-500.0,0.00019999,2]
[359624184,1746190250214,-500.0,0.00019999,2]
[359624185,1746190250224,-401.81627553,0.00019999,2]
[359624186,1746190250234,-666.0,0.00019999,2]
[359624187,1746190250244,-322.76299079,0.00019999,2]
[359624188,1746190250254,-300.0,0.00019999,2]
[359624189,1746190250264,-312.01631586,0.00019999,2]
[359624190,1746190250273,-991.82650779,0.00019999,2]
[359624191,1746190250282,-1000.0,0.00019999,2]
[359624192,1746190250292,-156670.33100402,0.0002,4]
[359624193,1746190250302,-3177888.03649566,0.0002,2]
[359624194,1746190250711,-1374.92276963,0.0002,2]
[359624195,1746190250728,-2439.74720309,0.0002,2]
[359624196,1746190250739,-4930.9037663,0.0002,2]
[359624197,1746190250755,-1509.68330927,0.0002,2]
[359624198,1746190250785,-607.46602351,0.0002,2]
[359624199,1746190250806,-9694.464142,0.0002,2]
[359624200,1746190250825,-19416.2,0.0002,2]
[359624201,1746190251339,-449.003422,0.00019776,2]
[359624202,1746190251349,-449.003422,0.00019776,2]
[359624203,1746190251358,-449.003422,0.00019777,2]
[359624204,1746190251368,-156.63736672,0.000199,2]
[359624205,1746190251377,-265.97236728,0.0002,2]
[359624206,1746190251389,-6163.41419395,0.0002,2]
[359624207,1746190251400,-295.99920458,0.0002,2]
[359624208,1746190251411,-330.22097111,0.0002,2]
[359624209,1746190251423,-387.66609591,0.0002,2]
[359624210,1746190251439,-3447.51354814,0.0002,2]
[359624211,1746190252048,-449.003422,0.00019776,2]
[359624212,1746190252058,-449.003422,0.00019776,2]
[359624213,1746190252067,-449.003422,0.00019777,2]
[359624214,1746190252077,-449.003422,0.00019777,2]
[359624215,1746190252086,-449.003422,0.00019777,2]
[359624216,1746190252096,-449.003422,0.00019777,2]
[359624217,1746190252105,-449.003422,0.00019777,2]
[359624218,1746190252114,-449.003422,0.00019777,2]
[359624219,1746190252124,-449.003422,0.00019778,2]
[359624220,1746190252134,-449.003422,0.00019922,2]
[359624221,1746190252143,-3060.12283511,0.0002,2]
[359624222,1746190252156,-3212.66273304,0.0002,2]
[359624223,1746190252167,-591.0999995,0.0002,2]
[359624230,1746190297194,979.69,0.00019025,2]
[359624235,1746190418624,250.0,0.00017,2]
[359624236,1746190419728,300.0,0.00019,2]
[359624248,1746190650843,1000.0,0.0001881,2]
[359624250,1746190954648,250.0,0.00018785,7]
[359624251,1746191050281,-200.0,0.00045253,7]
[359624252,1746191071010,154.43,0.00018785,2]
[359624262,1746191431588,-281.28198836,0.00019575,2]
[359624264,1746191431807,-918.71801164,0.00019575,2]
[359624265,1746191431816,-300.0,0.00019575,2]
[359624266,1746191431825,-300.0,0.00019575,2]
[359624267,1746191431834,-521.28202836,0.00019576,2]
[359624268,1746191431871,-205.94575427,0.00019576,2]
[359624269,1746191431881,-264.23773632,0.00019576,2]
[359624270,1746191431977,-250.0,0.00019576,2]
[359624310,1746191437724,-212.9900463,0.00019576,2]
[359624311,1746191437735,-500.0,0.00019576,2]
[359624312,1746191437747,-500.0,0.00019576,2]
[359624313,1746191437758,-374.3791321,0.00019576,2]
[359624314,1746191437772,-2248.07,0.00019675,2]
[359624315,1746191437785,-164.103,0.00019675,2]
[359624316,1746191437796,-1000.0,0.00019676,2]
[359624317,1746191437807,-55003.50479586,0.00019676,2]
[359624318,1746191437817,-2229.79288685,0.00019676,2]
[359624319,1746191437829,-7931.7034691,0.00019676,2]
[359624324,1746191439743,-2197.36889608,0.00019676,2]
[359624325,1746191439754,-2229.79288684,0.00019701,2]
[359624326,1746191439766,-10129.07236509,0.00019701,2]
[359624327,1746191439778,-166.59,0.0001972,2]
[359624328,1746191439789,-2229.79288684,0.00019726,2]
[359624329,1746191439800,-10129.07236509,0.00019726,2]
[359624330,1746191439811,-150.0,0.00019734,2]
[359624331,1746191439823,-1916.31060006,0.00019751,2]
[359624332,1746191439846,-313.48228678,0.00019751,2]
[359624333,1746191439857,-10129.07236509,0.00019751,2]
[359624334,1746191439868,-185.86498536,0.00019773,2]
[359624335,1746191439879,-543.3110312,0.00019773,2]
[359624336,1746191439891,-500.0,0.00019775,2]
[359624337,1746191439902,-186.07585118,0.00019775,2]
[359624338,1746191439914,-500.0,0.00019775,2]
[359624339,1746191439925,-500.0,0.00019775,2]
[359624340,1746191439936,-450.0,0.00019775,2]
[359624341,1746191439947,-450.0,0.00019775,2]
[359624342,1746191439957,-450.0,0.00019775,2]
[359624343,1746191439969,-450.0,0.00019775,2]
[359624344,1746191439980,-2229.79288684,0.00019776,2]
[359624345,1746191439991,-10129.07236509,0.00019776,2]
[359624346,1746191440003,-450.0,0.00019776,2]
[359624347,1746191440014,-450.0,0.00019776,2]
[359624348,1746191440025,-450.0,0.00019776,2]
[359624349,1746191440037,-450.0,0.00019776,2]
[359624350,1746191440048,-450.0,0.00019776,2]
[359624351,1746191440059,-450.0,0.00019776,2]
[359624352,1746191440070,-450.0,0.00019776,2]
[359624353,1746191440081,-511.29,0.00019776,2]
[359624354,1746191440092,-453.59,0.00019776,2]
[359624355,1746191440103,-450.0,0.00019776,2]
[359624356,1746191440114,-450.0,0.00019776,2]
[359624357,1746191440125,-450.0,0.00019776,2]
[359624358,1746191440136,-450.0,0.00019776,2]
[359624359,1746191440147,-450.0,0.00019776,2]
[359624360,1746191440159,-1470.6,0.00019776,2]
[359624361,1746191440170,-450.0,0.00019776,2]
[359624362,1746191440181,-450.0,0.00019776,2]
[359624363,1746191440192,-318.76601085,0.00019776,2]
[359624364,1746191440204,-450.0,0.00019776,2]
[359624365,1746191440215,-450.0,0.00019776,2]
[359624366,1746191440225,-450.0,0.00019776,2]
[359624367,1746191440236,-450.0,0.00019776,2]
[359624368,1746191440247,-867.06,0.00019776,2]
[359624369,1746191440258,-450.0,0.00019776,2]
[359624370,1746191440270,-588.1,0.00019776,2]
[359624371,1746191440281,-450.0,0.00019776,2]
[359624372,1746191440293,-910.4,0.00019776,2]
[359624373,1746191440303,-547.68083013,0.00019776,2]
[359624374,1746191440315,-450.0,0.00019776,2]
[359624375,1746191440326,-450.0,0.00019776,2]
[359624376,1746191440337,-460.35808729,0.00019776,2]
[359624377,1746191440349,-450.0,0.00019776,2]
[359624378,1746191440360,-450.0,0.00019776,2]
[359624380,1746191440371,-450.0,0.00019776,2]
[359624381,1746191440382,-516.74135919,0.00019776,2]
[359624382,1746191440396,-450.0,0.00019776,2]
[359624383,1746191440407,-450.0,0.00019776,2]
[359624385,1746191440419,-450.0,0.00019776,2]
[359624386,1746191440431,-450.0,0.00019776,2]
[359624387,1746191440443,-450.0,0.00019776,2]
[359624388,1746191440454,-450.0,0.00019776,2]
[359624389,1746191440466,-450.0,0.00019776,2]
[359624390,1746191440479,-450.0,0.00019776,2]
[359624391,1746191440490,-571.15,0.00019776,2]
[359624392,1746191440502,-1089.17,0.00019776,2]
[359624393,1746191440513,-450.0,0.00019776,2]
[359624394,1746191440524,-450.0,0.00019776,2]
[359624395,1746191440536,-478.03787714,0.00019776,2]
[359624396,1746191440547,-450.0,0.00019776,2]
[359624397,1746191440559,-450.0,0.00019776,2]
[359624398,1746191440570,-450.0,0.00019776,2]
[359624399,1746191440581,-450.0,0.00019776,2]
[359624400,1746191440592,-653.36,0.00019776,2]
[359624401,1746191440603,-450.0,0.00019776,2]
[359624402,1746191440615,-450.0,0.00019776,2]
[359624403,1746191440626,-450.0,0.00019776,2]
[359624404,1746191440637,-450.0,0.00019776,2]
[359624405,1746191440649,-450.0,0.00019776,2]
[359624406,1746191440661,-1142.43,0.00019776,2]
[359624407,1746191440672,-450.0,0.00019776,2]
[359624408,1746191440684,-450.0,0.00019776,2]
[359624409,1746191440695,-450.0,0.00019776,2]
[359624410,1746191440706,-450.0,0.00019776,2]
[359624411,1746191440719,-450.0,0.00019776,2]
[359624412,1746191440730,-704.63,0.00019776,2]
[359624413,1746191440742,-450.0,0.00019776,2]
[359624414,1746191440753,-450.0,0.00019776,2]
[359624415,1746191440766,-450.0,0.00019776,2]
[359624416,1746191440777,-450.0,0.00019776,2]
[359624417,1746191440790,-450.0,0.00019776,2]
[359624418,1746191440801,-1471.93,0.00019776,2]
[359624419,1746191440812,-842.86,0.00019776,2]
[359624420,1746191440823,-450.0,0.00019776,2]
[359624421,1746191440834,-450.0,0.00019776,2]
[359624422,1746191440845,-300.0,0.00019776,2]
[359624423,1746191440856,-450.0,0.00019776,2]
[359624424,1746191440867,-678.71,0.00019776,2]
[359624425,1746191440878,-450.0,0.00019776,2]
[359624426,1746191440888,-482.41234061,0.00019776,2]
[359624427,1746191440899,-450.0,0.00019776,2]
[359624428,1746191440910,-450.0,0.00019776,2]
[359624429,1746191440921,-450.0,0.00019776,2]
[359624430,1746191440932,-450.0,0.00019776,2]
[359624431,1746191440943,-450.0,0.00019776,2]
[359624432,1746191440953,-616.22,0.00019776,2]
[359624433,1746191440964,-450.0,0.00019776,2]
[359624434,1746191440975,-450.0,0.00019776,2]
[359624435,1746191440986,-1149.56,0.00019776,2]
[359624436,1746191440996,-712.68,0.00019776,2]
[359624437,1746191441008,-450.0,0.00019776,2]
[359624438,1746191441018,-224.84445446,0.00019776,2]
[359624439,1746191441029,-450.0,0.00019776,2]
[359624440,1746191441040,-450.0,0.00019776,2]
[359624441,1746191441050,-480.76,0.00019776,2]
[359624442,1746191441061,-450.0,0.00019776,2]
[359624443,1746191441071,-450.0,0.00019776,2]
[359624444,1746191441082,-450.0,0.00019776,2]
[359624445,1746191441093,-450.0,0.00019776,2]
[359624446,1746191441103,-753.74,0.00019776,2]
[359624447,1746191441114,-450.0,0.00019776,2]
[359624448,1746191441124,-450.0,0.00019776,2]
[359624449,1746191441135,-450.0,0.00019776,2]
[359624450,1746191441145,-450.0,0.00019776,2]
[359624451,1746191441156,-450.0,0.00019776,2]
[359624452,1746191441167,-627.99,0.00019776,2]
[359624453,1746191441177,-2213.38,0.00019776,2]
[359624454,1746191441187,-488.54320447,0.00019776,2]
[359624455,1746191441199,-450.0,0.00019776,2]
[359624456,1746191441209,-671.12,0.00019776,2]
[359624457,1746191441220,-450.0,0.00019776,2]
[359624458,1746191441231,-450.0,0.00019776,2]
[359624459,1746191441242,-450.0,0.00019776,2]
[359624460,1746191441253,-608.39,0.00019776,2]
[359624461,1746191441264,-450.0,0.00019776,2]
[359624462,1746191441274,-450.0,0.00019776,2]
[359624463,1746191441285,-450.0,0.00019776,2]
[359624464,1746191441297,-450.0,0.00019776,2]
[359624465,1746191441307,-450.0,0.00019776,2]
[359624466,1746191441318,-450.0,0.00019776,2]
[359624467,1746191441329,-450.0,0.00019776,2]
[359624468,1746191441340,-3223.56,0.00019776,2]
[359624469,1746191441351,-450.0,0.00019776,2]
[359624470,1746191441364,-486.88,0.00019776,2]
[359624471,1746191441375,-1033.89,0.00019776,2]
[359624472,1746191441386,-577.83,0.00019776,2]
[359624473,1746191441401,-3214.15,0.00019776,2]
[359624474,1746191441419,-450.0,0.00019776,2]
[359624475,1746191441430,-450.0,0.00019776,2]
[359624476,1746191441442,-529.71,0.00019776,2]
[359624477,1746191441453,-450.0,0.00019776,2]
[359624478,1746191441464,-827.6,0.00019776,2]
[359624479,1746191441476,-558.93,0.00019776,2]
[359624480,1746191441487,-450.0,0.00019776,2]
[359624481,1746191441498,-617.17,0.00019776,2]
[359624482,1746191441510,-452.28,0.00019776,2]
[359624483,1746191441520,-450.0,0.00019776,2]
[359624484,1746191441532,-979.1,0.00019776,2]
[359624485,1746191441543,-741.84,0.00019776,2]
[359624486,1746191441553,-1350.96,0.00019776,2]
[359624487,1746191441564,-505.86,0.00019776,2]
[359624488,1746191441575,-450.0,0.00019776,2]
[359624489,1746191441587,-391.16393632,0.00019776,2]
[359624490,1746191441597,-450.0,0.00019776,2]
[359624491,1746191441608,-350.41375353,0.00019776,2]
[359624492,1746191441620,-1060.04,0.00019776,2]
[359624493,1746191441630,-605.56,0.00019776,2]
[359624494,1746191441641,-450.0,0.00019776,2]
[359624495,1746191441652,-450.0,0.00019776,2]
[359624496,1746191441662,-450.0,0.00019776,2]
[359624497,1746191441673,-509.74,0.00019776,2]
[359624498,1746191441684,-1113.24,0.00019776,2]
[359624499,1746191441695,-1357.56,0.00019776,2]
[359624500,1746191441706,-450.0,0.00019776,2]
[359624501,1746191442160,-1271.8,0.00019776,2]
[359624502,1746191442184,-450.0,0.00019776,2]
[359624503,1746191442194,-450.0,0.00019776,2]
[359624504,1746191442203,-459.6,0.00019776,2]
[359624505,1746191442213,-450.0,0.00019776,2]
[359624506,1746191442222,-450.0,0.00019776,2]
[359624507,1746191442232,-450.0,0.00019776,2]
[359624508,1746191442241,-450.0,0.00019776,2]
[359624509,1746191442251,-450.0,0.00019776,2]
[359624510,1746191442261,-947.23,0.00019776,2]
[359624511,1746191442271,-450.0,0.00019776,2]
[359624512,1746191442280,-450.0,0.00019776,2]
[359624513,1746191442289,-450.0,0.00019776,2]
[359624514,1746191442298,-514.03,0.00019776,2]
[359624515,1746191442307,-450.0,0.00019776,2]
[359624516,1746191442318,-741.84,0.00019776,2]
[359624517,1746191442327,-955.97,0.00019776,2]
[359624518,1746191442336,-450.0,0.00019776,2]
[359624519,1746191442346,-739.41,0.00019776,2]
[359624520,1746191442356,-450.0,0.00019776,2]
[359624521,1746191442365,-450.0,0.00019776,2]
[359624522,1746191442375,-248.25267956,0.00019776,2]
[359624523,1746191442384,-704.26,0.00019776,2]
[359624524,1746191442396,-450.0,0.00019776,2]
[359624525,1746191442405,-450.0,0.00019776,2]
[359624526,1746191442415,-587.57,0.00019776,2]
[359624527,1746191442425,-485.93,0.00019776,2]
[359624528,1746191442434,-600.87,0.00019776,2]
[359624529,1746191442445,-450.0,0.00019776,2]
[359624531,1746191442455,-574.43,0.00019776,2]
[359624533,1746191442464,-1519.18,0.00019776,2]
[359624535,1746191442476,-486.13792867,0.00019776,2]
[359624537,1746191442485,-450.0,0.00019776,2]
[359624538,1746191442495,-450.0,0.00019776,2]
[359624539,1746191442505,-839.28,0.00019776,2]
[359624540,1746191442514,-450.0,0.00019776,2]
[359624541,1746191442524,-450.0,0.00019776,2]
[359624542,1746191442534,-450.0,0.00019776,2]
[359624543,1746191442545,-450.0,0.00019776,2]
[359624545,1746191442554,-789.92,0.00019776,2]
[359624547,1746191442564,-450.0,0.00019776,2]
[359624549,1746191442575,-450.0,0.00019776,2]
[359624550,1746191442585,-1987.86,0.00019776,2]
[359624551,1746191442594,-450.0,0.00019776,2]
[359624552,1746191442604,-450.0,0.00019776,2]
[359624553,1746191442613,-980.04,0.00019776,2]
[359624554,1746191442623,-1007.58,0.00019776,2]
[359624555,1746191442632,-2023.13,0.00019776,2]
[359624556,1746191442641,-450.0,0.00019776,2]
[359624557,1746191442650,-725.45,0.00019776,2]
[359624558,1746191442659,-807.33,0.00019776,2]
[359624559,1746191442669,-685.7,0.00019776,2]
[359624560,1746191442679,-484.34,0.00019776,2]
[359624561,1746191442688,-450.0,0.00019776,2]
[359624562,1746191442697,-747.04,0.00019776,2]
[359624563,1746191442707,-450.0,0.00019776,2]
[359624564,1746191442716,-786.83,0.00019776,2]
[359624565,1746191442726,-450.0,0.00019776,2]
[359624566,1746191442735,-450.0,0.00019776,2]
[359624567,1746191442743,-2512.92,0.00019776,2]
[359624568,1746191442752,-4905.01,0.00019776,2]
[359624569,1746191442761,-450.0,0.00019776,2]
[359624570,1746191442770,-450.0,0.00019776,2]
[359624571,1746191442779,-703.9,0.00019776,2]
[359624572,1746191442788,-799.86,0.00019776,2]
[359624573,1746191442798,-2344.03,0.00019776,2]
[359624574,1746191442807,-669.43,0.00019776,2]
[359624575,1746191442816,-488.68,0.00019776,2]
[359624576,1746191442825,-1234.64,0.00019776,2]
[359624577,1746191442835,-973.78,0.00019776,2]
[359624578,1746191442844,-450.0,0.00019776,2]
[359624579,1746191442854,-738.65,0.00019776,2]
[359624580,1746191442864,-2194.09,0.00019776,2]
[359624581,1746191442873,-450.0,0.00019776,2]
[359624582,1746191442882,-823.86,0.00019776,2]
[359624583,1746191442891,-1248.4,0.00019776,2]
[359624584,1746191442901,-450.0,0.00019776,2]
[359624585,1746191442910,-720.84,0.00019776,2]
[359624586,1746191442919,-1439.76,0.00019776,2]
[359624587,1746191442929,-450.0,0.00019776,2]
[359624588,1746191442938,-997.31,0.00019776,2]
[359624589,1746191442947,-482.46,0.00019776,2]
[359624590,1746191442956,-942.34,0.00019776,2]
[359624591,1746191442966,-450.0,0.00019776,2]
[359624592,1746191442975,-6538.11,0.00019776,2]
[359624593,1746191442984,-450.0,0.00019776,2]
[359624595,1746191442993,-6648.93,0.00019776,2]
[359624596,1746191443002,-954.54,0.00019776,2]
[359624597,1746191443011,-559.01,0.00019776,2]
[359624598,1746191443021,-6335.32,0.00019776,2]
[359624599,1746191443030,-941.46,0.00019776,2]
[359624600,1746191443039,-450.0,0.00019776,2]
[359624601,1746191443048,-853.87,0.00019776,2]
[359624603,1746191443057,-651.11,0.00019776,2]
[359624605,1746191443067,-857.7,0.00019776,2]
[359624607,1746191443076,-591.31,0.00019776,2]
[359624608,1746191443084,-6536.57,0.00019776,2]
[359624609,1746191443093,-1284.2,0.00019776,2]
[359624610,1746191443102,-450.0,0.00019776,2]
[359624612,1746191443111,-1052.23,0.00019776,2]
[359624614,1746191443120,-1420.49,0.00019776,2]
[359624616,1746191443129,-124236.96,0.00019776,2]
[359624618,1746191443138,-450.0,0.00019776,2]
[359624620,1746191443148,-450.0,0.00019776,2]
[359624622,1746191443157,-1500.42,0.00019776,2]
[359624624,1746191443166,-543.96,0.00019776,2]
[359624626,1746191443175,-504.49,0.00019776,2]
[359624628,1746191443185,-6802.55,0.00019776,2]
[359624630,1746191443195,-662.74,0.00019776,2]
[359624632,1746191443204,-492.66,0.00019776,2]
[359624633,1746191443213,-35585.84,0.00019776,2]
[359624634,1746191443223,-696.75,0.00019776,2]
[359624635,1746191443232,-450.0,0.00019776,2]
[359624636,1746191443241,-761.99,0.00019776,2]
[359624637,1746191443250,-20195.9,0.00019776,2]
[359624638,1746191443259,-450.0,0.00019776,2]
[359624639,1746191443269,-1879.31,0.00019776,2]
[359624640,1746191443278,-450.0,0.00019776,2]
[359624641,1746191443287,-769.08,0.00019776,2]
[359624642,1746191443297,-639.9,0.00019776,2]
[359624643,1746191443307,-450.0,0.00019776,2]
[359624644,1746191443316,-450.0,0.00019776,2]
[359624645,1746191443325,-450.0,0.00019776,2]
[359624646,1746191443335,-1113.24,0.00019777,2]
[359624647,1746191443344,-1113.24,0.00019777,2]
[359624648,1746191443353,-1915.636177,0.00019782,2]
[359624649,1746191443363,-1478.300241,0.00019782,2]
[359624650,1746191443372,-1915.636177,0.00019784,2]
[359624651,1746191443381,-1478.300241,0.00019784,2]
[359624652,1746191443392,-1915.636177,0.00019785,2]
[359624653,1746191443404,-1915.636177,0.00019785,2]
[359624654,1746191443414,-1478.300241,0.00019785,2]
[359624655,1746191443423,-1478.300241,0.00019785,2]
[359624656,1746191443434,-1915.636177,0.00019786,2]
[359624657,1746191443443,-1478.300241,0.00019786,2]
[359624658,1746191443452,-1915.636177,0.00019787,2]
[359624659,1746191443462,-1478.300241,0.00019787,2]
[359624660,1746191443471,-1915.636177,0.00019789,2]
[359624661,1746191443481,-1478.300241,0.00019789,2]
[359624662,1746191443491,-1915.636177,0.00019791,2]
[359624663,1746191443501,-1478.300241,0.00019791,2]
[359624664,1746191443510,-1915.636177,0.00019793,2]
[359624665,1746191443519,-1478.300241,0.00019793,2]
[359624666,1746191443529,-2046.7402222,0.00019799,2]
[359624667,1746191443538,-1620.7313,0.000198,2]
[359624668,1746191443548,-2229.79288684,0.000198,2]
[359624669,1746191443557,-10129.07236509,0.000198,2]
[359624670,1746191443567,-150.0,0.00019801,2]
[359624671,1746191443576,-866.118,0.00019823,2]
[359624672,1746191443585,-4006.0,0.00019823,2]
[359624673,1746191443594,-6753.0,0.00019823,2]
[359624674,1746191443604,-153.0,0.00019823,2]
[359624675,1746191443613,-878.0,0.00019823,2]
[359624676,1746191443622,-1915.636177,0.00019825,2]
[359624677,1746191443632,-1478.300241,0.00019825,2]
[359624678,1746191443641,-2229.79288684,0.00019825,2]
[359624679,1746191443652,-10129.07236509,0.00019825,2]
[359624680,1746191443662,-2229.79288684,0.0001985,2]
[359624681,1746191443671,-10129.07236509,0.0001985,2]
[359624682,1746191443680,-150.0,0.00019856,2]
[359624683,1746191443689,-2229.79288684,0.00019875,2]
[359624684,1746191443699,-10129.07236509,0.00019875,2]
[359624685,1746191443708,-12500.0,0.00019882,2]
[359624686,1746191443717,-12500.0,0.00019891,2]
[359624687,1746191443727,-5800.0,0.00019892,2]
[359624688,1746191443736,-150.0,0.00019892,2]
[359624689,1746191443746,-150.0,0.00019899,2]
[359624690,1746191443755,-1466.75590767,0.00019899,2]
[359624691,1746191443764,-1466.75590766,0.000199,2]
[359624692,1746191443774,-12500.0,0.000199,2]
[359624693,1746191443783,-5800.0,0.000199,2]
[359624694,1746191443793,-12500.0,0.000199,2]
[359624695,1746191443803,-7380.60260689,0.000199,2]
[359624696,1746191443812,-2229.79288684,0.000199,2]
[359624697,1746191443821,-1813.18545203,0.000199,2]
[359624698,1746191443831,-1466.75590766,0.000199,2]
[359624699,1746191443840,-156.2251907,0.000199,2]
[359624700,1746191443849,-1761.01662206,0.000199,2]
[359624701,1746191443858,-10129.07236509,0.000199,2]
[359624702,1746191443868,-156.22519066,0.00019908,2]
[359624703,1746191443877,-156.22519066,0.00019917,2]
[359624704,1746191443886,-150.0,0.00019932,2]
[359624705,1746191443895,-150.0,0.00019944,2]
[359624706,1746191443905,-797.0,0.00019944,2]
[359624707,1746191443914,-151.0,0.00019954,2]
[359624708,1746191443923,-1113.24,0.00019971,2]
[359624709,1746191443932,-501.47327578,0.00019973,2]
[359624710,1746191443942,-500.0,0.00019973,2]
[359624711,1746191443951,-500.0,0.00019973,2]
[359624712,1746191443960,-500.0,0.00019973,2]
[359624713,1746191443970,-306.32642117,0.00019973,2]
[359624714,1746191443979,-500.0,0.00019973,2]
[359624715,1746191443988,-505.11388319,0.00019973,2]
[359624716,1746191443997,-500.8896261,0.00019973,2]
[359624717,1746191444007,-500.0,0.00019973,2]
[359624718,1746191444016,-500.0,0.00019973,2]
[359624719,1746191444025,-150.0,0.00019982,2]
[359624720,1746191444035,-150.0,0.00019985,2]
[359624721,1746191444045,-1113.24,0.00019985,2]
[359624722,1746191444054,-1068.0,0.00019986,2]
[359624723,1746191444063,-217.11897616,0.0001999,2]
[359624724,1746191444072,-217.11897616,0.0001999,2]
[359624725,1746191444082,-300.0,0.00019999,2]
[359624726,1746191444091,-500.0,0.00019999,2]
[359624727,1746191444101,-666.0,0.00019999,2]
[359624728,1746191444110,-300.0,0.00019999,2]
[359624729,1746191444120,-300.0,0.00019999,2]
[359624730,1746191444129,-450.0,0.00019999,2]
[359624731,1746191444139,-450.0,0.00019999,2]
[359624732,1746191444148,-450.0,0.00019999,2]
[359624733,1746191444157,-450.0,0.00019999,2]
[359624734,1746191444166,-450.0,0.00019999,2]
[359624735,1746191444175,-450.0,0.00019999,2]
[359624736,1746191444184,-450.0,0.00019999,2]
[359624737,1746191444194,-531.05,0.00019999,2]
[359624738,1746191444203,-616.32,0.00019999,2]
[359624739,1746191444213,-488.78,0.00019999,2]
[359624740,1746191444222,-525.58,0.00019999,2]
[359624741,1746191444231,-601.12,0.00019999,2]
[359624742,1746191444241,-450.0,0.00019999,2]
[359624743,1746191444250,-450.0,0.00019999,2]
[359624744,1746191444259,-450.0,0.00019999,2]
[359624745,1746191444269,-450.0,0.00019999,2]
[359624746,1746191444279,-450.0,0.00019999,2]
[359624747,1746191444288,-1118.54,0.00019999,2]
[359624748,1746191444299,-450.0,0.00019999,2]